[Event "EYCC Open-U12 2019"]
[Site "Bratislava"]
[Date "2019.08.04"]
[Round "3.54"]
[White "Sokolovskis, Pavels"]
[Black "Shinkarov, Artem"]
[Result "0-1"]
[ECO "E32"]
[WhiteElo "1473"]
[BlackElo "1798"]
[Annotator "NA"]
[PlyCount "62"]
[EventDate "2019.08.02"]
[EventType "swiss"]
[EventCountry "SVK"]
[SourceTitle "playchess.com"]
[Source "ChessBase"]
[SourceQuality "1"]
[TimeControl "40/5400+30:1800+30"]

1. d4 Nf6 2. c4 e6 3. Nc3 Bb4 4. Qc2 O-O 5. e4 d5 6. e5 Ne4 7. a3 Bxc3+ 8. bxc3 c5 9. Bd3 cxd4 10. cxd4 Nc6 11. Ne2 Qa5+ 12. Kf1 f6 13. Bf4 fxe5 14. dxe5 Nb4 15. Qb1 Nxd3 16. Qxd3 Qb6 17. Qe3 g5 18. Qxb6 axb6 19. Be3 dxc4 20. Nd4 Bd7 21. Ke2 Ra5 22. f3 Nc3+ 23. Kd2 Rxe5 24. Rhc1 Nd5 25. Bf2 Rc8 26. Re1 c3+ 27. Kc2 Ba4+ 28. Nb3 Rxe1 29. Rxe1 Nf4 30. g3 Bxb3+ 31. Kxb3 Nd3 0-1

[Event "EYCC Open-U12 2019"]
[Site "Bratislava"]
[Date "2019.08.05"]
[Round "4.1"]
[White "Petrovskiy, Vadim"]
[Black "Ciric, Pavle"]
[Result "1-0"]
[ECO "C11"]
[WhiteElo "2090"]
[BlackElo "1987"]
[Annotator "NA"]
[PlyCount "67"]
[EventDate "2019.08.02"]
[EventType "swiss"]
[EventCountry "SVK"]
[SourceTitle "playchess.com"]
[Source "ChessBase"]
[SourceQuality "1"]
[TimeControl "40/5400+30:1800+30"]

1. e4 {[%emt 0:00:00]} e6 {[%emt 0:00:00]} 2. d4 {[%emt 0:00:00]} d5 {[%emt 0:00:00]} 3. Nc3 {[%emt 0:00:00]} Nf6 {[%emt 0:00:00]} 4. e5 {[%emt 0:00:15]} Nfd7 {[%emt 0:00:00]} 5. f4 {[%emt 0:00:08]} c5 {[%emt 0:00:00]} 6. Nf3 {[%emt 0:00:08]} Nc6 {[%emt 0:00:00]} 7. Be3 {[%emt 0:00:07]} Be7 {[%emt 0:00:01]} 8. Qd2 {[%emt 0:00:09]} b6 {[%emt 0:00:16]} 9. O-O-O {[%emt 0:01:35]} O-O {[%emt 0:00:25]} 10. h4 {[%emt 0:00:21]} cxd4 {[%emt 0:01:40]} 11. Nxd4 {[%emt 0:00:16]} Nxd4 {[%emt 0:00:05]} 12. Bxd4 {[%emt 0:00:15]} Bb7 {[%emt 0:06:39]} 13. g4 {[%emt 0:03:24]} f6 {[%emt 0:02:28]} 14. Kb1 {[%emt 0:03:36]} fxe5 {[%emt 0:02:03]} 15. fxe5 {[%emt 0:00:07]} Bc5 {[%emt 0:08:00]} 16. Bh3 {[%emt 0:13:38]} Bxd4 {[%emt 0:00:17]} 17. Qxd4 {[%emt 0:00:02]} Qc7 {[%emt 0:04:08]} 18. g5 {[%emt 0:00:19]} Rae8 {[%emt 0:00:23]} 19. Nb5 {[%emt 0:00:54]} Qb8 {[%emt 0:14:22]} 20. Nd6 {[%emt 0:00:46]} Re7 {[%emt 0:00:04]} 21. g6 {[%emt 0:01:01]} h6 {[%emt 0:06:43]} 22. Rhf1 {[%emt 0:00:54]} Rxf1 {[%emt 0:11:57]} 23. Rxf1 {[%emt 0:00:04]} Nf8 {[%emt 0:00:11]} 24. h5 {[%emt 0:01:03]} Bc6 {[%emt 0:06:33]} 25. Qh4 {[%emt 0:02:50]} Qc7 {[%emt 0:01:23]} 26. Qb4 {[%emt 0:03:09]} a5 {[%emt 0:01:22]} 27. Qa3 {[%emt 0:00:16]} Qd8 {[%emt 0:02:56]} 28. Qe3 {[%emt 0:05:40]} Qb8 {[%emt 0:05:14]} 29. Rf4 {[%emt 0:03:40]} Rd7 {[%emt 0:02:15]} 30. Qf2 {[%emt 0:06:44]} Rxd6 {[%emt 0:03:11]} 31. exd6 {[%emt 0:00:03]} Bd7 {[%emt 0:00:03]} 32. Rf7 {[%emt 0:00:19]} Qxd6 {[%emt 0:00:42]} 33. Rxg7+ {[%emt 0:00:09]} Kh8 {[%emt 0:00:36]} 34. Qf7 {[%emt 0:00:12]} 1-0

[Event "EYCC Open-U12 2019"]
[Site "Bratislava"]
[Date "2019.08.05"]
[Round "4.2"]
[White "Makkar, Rajat"]
[Black "Piliposyan, Robert"]
[Result "0-1"]
[ECO "E15"]
[WhiteElo "2064"]
[BlackElo "2156"]
[Annotator "NA"]
[PlyCount "96"]
[EventDate "2019.08.02"]
[EventType "swiss"]
[EventCountry "SVK"]
[SourceTitle "playchess.com"]
[Source "ChessBase"]
[SourceQuality "1"]
[TimeControl "40/5400+30:1800+30"]

1. d4 {[%emt 0:00:00]} Nf6 {[%emt 0:00:05]} 2. c4 {[%emt 0:00:11]} e6 {[%emt 0:00:16]} 3. Nf3 {[%emt 0:00:36]} b6 {[%emt 0:00:17]} 4. g3 {[%emt 0:00:42]} Ba6 {[%emt 0:00:07]} 5. Qa4 {[%emt 0:00:27]} c5 {[%emt 0:00:11]} 6. Bg2 {[%emt 0:00:45]} Bb7 {[%emt 0:00:07]} 7. dxc5 {[%emt 0:00:31]} bxc5 {[%emt 0:00:08]} 8. O-O {[%emt 0:02:17]} Be7 {[%emt 0:00:11]} 9. Nc3 {[%emt 0:01:57]} O-O {[%emt 0:00:15]} 10. Bf4 {[%emt 0:02:36]} d6 {[%emt 0:02:32]} 11. Rad1 {[%emt 0:02:20]} Qb6 {[%emt 0:01:50]} 12. Rfe1 {[%emt 0:02:30]} Ne4 {[%emt 0:03:44]} 13. Qb3 {[%emt 0:12:13]} Nxc3 {[%emt 0:02:33]} 14. bxc3 {[%emt 0:01:40]} Rd8 {[%emt 0:14:32]} 15. Qc2 {[%emt 0:06:09]} Qa6 {[%emt 0:19:42]} 16. Rb1 {[%emt 0:07:33]} Bc6 {[%emt 0:00:39]} 17. Qd3 {[%emt 0:05:53]} h6 {[%emt 0:03:32]} 18. e4 {[%emt 0:03:13]} e5 {[%emt 0:02:38]} 19. Be3 {[%emt 0:01:25]} Nd7 {[%emt 0:00:26]} 20. Nd2 {[%emt 0:02:44]} Rab8 {[%emt 0:01:22]} 21. Qc2 {[%emt 0:03:16]} Nb6 {[%emt 0:05:12]} 22. Bf1 {[%emt 0:02:07]} Bd7 {[%emt 0:01:28]} 23. f4 {[%emt 0:02:10]} exf4 {[%emt 0:01:17]} 24. Bxf4 {[%emt 0:02:44]} Be6 {[%emt 0:01:26]} 25. e5 {[%emt 0:02:34]} dxe5 {[%emt 0:06:34]} 26. Rxe5 {[%emt 0:02:43]} Bd6 {[%emt 0:01:59]} 27. Rxe6 {[%emt 0:04:56]} Bxf4 {[%emt 0:02:01]} 28. gxf4 {[%emt 0:02:26]} fxe6 {[%emt 0:00:12]} 29. Ne4 {[%emt 0:01:10]} Nd7 {[%emt 0:02:34]} 30. Rd1 {[%emt 0:01:22]} Nf8 {[%emt 0:03:29]} 31. Rxd8 {[%emt 0:02:07]} Rxd8 {[%emt 0:00:27]} 32. Qf2 {[%emt 0:01:09]} Qb6 {[%emt 0:02:03]} 33. Qxc5 {[%emt 0:00:44]} Nd7 {[%emt 0:03:34]} 34. Qd4 {[%emt 0:01:35]} Nf8 {[%emt 0:07:25]} 35. Qf2 {[%emt 0:02:50]} Qxf2+ {[%emt 0:01:11]} 36. Kxf2 {[%emt 0:00:19]} Nd7 {[%emt 0:00:31]} 37. Bh3 {[%emt 0:00:16]} Kf7 {[%emt 0:00:59]} 38. c5 {[%emt 0:00:48]} Ke7 {[%emt 0:00:35]} 39. c6 {[%emt 0:02:25]} Nb6 {[%emt 0:04:28]} 40. Nc5 {[%emt 0:00:00]} Rd6 {[%emt 0:00:00]} 41. Bg2 {[%emt 0:04:47]} Rd2+ {[%emt 0:02:50]} 42. Kg1 {[%emt 0:01:16]} Rxa2 {[%emt 0:02:54]} 43. Bh3 {[%emt 0:01:05]} Rc2 {[%emt 0:00:48]} 44. Ne4 {[%emt 0:00:45]} a5 {[%emt 0:00:26]} 45. f5 {[%emt 0:01:04]} a4 {[%emt 0:00:42]} 46. fxe6 {[%emt 0:00:50]} a3 {[%emt 0:00:05]} 47. Ng3 {[%emt 0:00:12]} a2 {[%emt 0:00:10]} 48. Nf5+ {[%emt 0:00:13]} Kf6 {[%emt 0:00:07]} 0-1

[Event "EYCC Open-U12 2019"]
[Site "Bratislava"]
[Date "2019.08.05"]
[Round "4.3"]
[White "Pidluznij, Gleb"]
[Black "Vergara Anton, Diego"]
[Result "0-1"]
[ECO "C11"]
[WhiteElo "1947"]
[BlackElo "2183"]
[Annotator "NA"]
[PlyCount "88"]
[EventDate "2019.08.02"]
[EventType "swiss"]
[EventCountry "SVK"]
[SourceTitle "playchess.com"]
[Source "ChessBase"]
[SourceQuality "1"]
[TimeControl "40/5400+30:1800+30"]

1. e4 {[%emt 0:00:00]} e6 {[%emt 0:00:00]} 2. d4 {[%emt 0:00:00]} d5 {[%emt 0:00:00]} 3. Nc3 {[%emt 0:00:14]} Nf6 {[%emt 0:00:00]} 4. e5 {[%emt 0:00:21]} Nfd7 {[%emt 0:00:09]} 5. f4 {[%emt 0:00:46]} c5 {[%emt 0:02:32]} 6. Nf3 {[%emt 0:00:49]} Qb6 {[%emt 0:00:46]} 7. Be3 {[%emt 0:02:05]} a6 {[%emt 0:02:04]} 8. Na4 {[%emt 0:07:34]} Qa5+ {[%emt 0:01:21]} 9. c3 {[%emt 0:00:21]} cxd4 {[%emt 0:02:38]} 10. b4 {[%emt 0:00:15]} Qc7 {[%emt 0:00:20]} 11. Bxd4 {[%emt 0:00:25]} Nc6 {[%emt 0:01:20]} 12. Be3 {[%emt 0:01:02]} b5 {[%emt 0:07:33]} 13. Nb2 {[%emt 0:00:16]} Be7 {[%emt 0:11:04]} 14. a4 {[%emt 0:06:57]} Rb8 {[%emt 0:01:27]} 15. axb5 {[%emt 0:00:36]} axb5 {[%emt 0:00:03]} 16. Nd4 {[%emt 0:01:34]} Nxd4 {[%emt 0:03:51]} 17. Bxd4 {[%emt 0:01:38]} O-O {[%emt 0:05:58]} 18. Bd3 {[%emt 0:02:53]} Qc6 {[%emt 0:11:50]} 19. Qe2 {[%emt 0:01:09]} Bd8 {[%emt 0:02:35]} 20. O-O {[%emt 0:07:55]} Bb6 {[%emt 0:01:59]} 21. Rfc1 {[%emt 0:09:24]} Rb7 {[%emt 0:05:01]} 22. Kh1 {[%emt 0:01:58]} Bxd4 {[%emt 0:00:12]} 23. cxd4 {[%emt 0:00:09]} Qb6 {[%emt 0:00:31]} 24. Qd2 {[%emt 0:05:54]} Nb8 {[%emt 0:01:58]} 25. Ra5 {[%emt 0:04:18]} Bd7 {[%emt 0:03:33]} 26. Qc3 {[%emt 0:05:20]} g6 {[%emt 0:03:22]} 27. g3 {[%emt 0:22:54]} Rc8 {[%emt 0:01:15]} 28. Qd2 {[%emt 0:02:56]} Rxc1+ {[%emt 0:00:05]} 29. Qxc1 {[%emt 0:00:09]} Qxd4 {[%emt 0:01:07]} 30. Ra3 {[%emt 0:07:00]} Qxb4 {[%emt 0:04:47]} 31. Ra8 {[%emt 0:04:55]} Kg7 {[%emt 0:03:18]} 32. g4 {[%emt 0:00:57]} Qd4 {[%emt 0:04:26]} 33. Ra3 {[%emt 0:01:12]} b4 {[%emt 0:01:34]} 34. Rb3 {[%emt 0:00:22]} Nc6 {[%emt 0:00:48]} 35. Bb1 {[%emt 0:00:50]} Rb5 {[%emt 0:05:27]} 36. f5 {[%emt 0:00:57]} Nxe5 {[%emt 0:01:30]} 37. Rh3 {[%emt 0:00:27]} Nxg4 {[%emt 0:01:27]} 38. Rg3 {[%emt 0:01:21]} exf5 {[%emt 0:01:12]} 39. Bd3 {[%emt 0:00:50]} Rc5 {[%emt 0:00:37]} 40. Qd2 {[%emt 0:00:00]} Nf2+ {[%emt 0:00:00]} 41. Kg2 {[%emt 0:00:17]} Ne4 {[%emt 0:00:38]} 42. Qe2 {[%emt 0:00:26]} Nxg3 {[%emt 0:00:48]} 43. hxg3 {[%emt 0:00:02]} b3 {[%emt 0:00:39]} 44. Qd2 {[%emt 0:00:02]} Rc2 {[%emt 0:00:10]} 0-1

[Event "EYCC Open-U12 2019"]
[Site "Bratislava"]
[Date "2019.08.05"]
[Round "4.4"]
[White "Bat, Bilguun"]
[Black "Tarhan, Adar"]
[Result "1-0"]
[ECO "A05"]
[WhiteElo "2093"]
[BlackElo "1972"]
[Annotator "NA"]
[PlyCount "87"]
[EventDate "2019.08.02"]
[EventType "swiss"]
[EventCountry "SVK"]
[SourceTitle "playchess.com"]
[Source "ChessBase"]
[SourceQuality "1"]
[TimeControl "40/5400+30:1800+30"]

1. Nf3 {[%emt 0:00:00]} Nf6 {[%emt 0:00:00]} 2. e3 {[%emt 0:00:00]} d5 {[%emt 0:00:00]} 3. c4 {[%emt 0:00:00]} e6 {[%emt 0:00:00]} 4. Nc3 {[%emt 0:00:04]} Be7 {[%emt 0:00:09]} 5. b3 {[%emt 0:00:14]} O-O {[%emt 0:00:19]} 6. Bb2 {[%emt 0:00:07]} b6 {[%emt 0:00:37]} 7. cxd5 {[%emt 0:08:45]} exd5 {[%emt 0:01:23]} 8. Be2 {[%emt 0:04:28]} c5 {[%emt 0:07:50]} 9. d4 {[%emt 0:01:19]} h6 {[%emt 0:01:00]} 10. O-O {[%emt 0:00:18]} Be6 {[%emt 0:00:32]} 11. Rc1 {[%emt 0:05:43]} Nbd7 {[%emt 0:01:16]} 12. h3 {[%emt 0:01:27]} Rc8 {[%emt 0:01:11]} 13. Bd3 {[%emt 0:05:53]} Qc7 {[%emt 0:01:45]} 14. dxc5 {[%emt 0:03:11]} bxc5 {[%emt 0:02:43]} 15. Qe2 {[%emt 0:01:01]} Nb6 {[%emt 0:04:27]} 16. Ba6 {[%emt 0:05:00]} Rcd8 {[%emt 0:01:16]} 17. Nb5 {[%emt 0:00:35]} Qb8 {[%emt 0:01:41]} 18. Be5 {[%emt 0:00:16]} Qa8 {[%emt 0:00:33]} 19. Nc7 {[%emt 0:00:54]} Qc6 {[%emt 0:00:08]} 20. Nd4 {[%emt 0:01:55]} Qd7 {[%emt 0:00:28]} 21. Bb5 {[%emt 0:01:40]} Qc8 {[%emt 0:00:06]} 22. Nc6 {[%emt 0:01:00]} Rd7 {[%emt 0:00:51]} 23. Ba6 {[%emt 0:00:33]} Qxc7 {[%emt 0:00:34]} 24. Bxc7 {[%emt 0:00:13]} Rxc7 {[%emt 0:00:04]} 25. Nxe7+ {[%emt 0:00:07]} Rxe7 {[%emt 0:00:03]} 26. Rxc5 {[%emt 0:00:12]} Ne4 {[%emt 0:00:47]} 27. Rcc1 {[%emt 0:00:52]} Bd7 {[%emt 0:00:34]} 28. Bd3 {[%emt 0:00:14]} f5 {[%emt 0:00:31]} 29. Bxe4 {[%emt 0:00:40]} fxe4 {[%emt 0:00:09]} 30. a4 {[%emt 0:00:13]} Re5 {[%emt 0:01:03]} 31. f4 {[%emt 0:01:08]} Re6 {[%emt 0:00:16]} 32. a5 {[%emt 0:00:08]} Nc8 {[%emt 0:00:07]} 33. Rc7 {[%emt 0:00:17]} Rd6 {[%emt 0:00:45]} 34. Qd2 {[%emt 0:01:48]} a6 {[%emt 0:01:50]} 35. Rfc1 {[%emt 0:00:10]} Ne7 {[%emt 0:00:49]} 36. Qb4 {[%emt 0:00:13]} Rff6 {[%emt 0:00:15]} 37. Qb7 {[%emt 0:00:18]} Bc6 {[%emt 0:00:51]} 38. Qb8+ {[%emt 0:00:12]} Kf7 {[%emt 0:00:08]} 39. Qa7 {[%emt 0:00:46]} Rfe6 {[%emt 0:00:48]} 40. f5 {[%emt 0:00:00]} Re5 {[%emt 0:00:00]} 41. R1xc6 {[%emt 0:00:29]} Rxc6 {[%emt 0:00:07]} 42. Rxc6 {[%emt 0:00:09]} d4 {[%emt 0:00:04]} 43. Re6 {[%emt 0:00:11]} d3 {[%emt 0:00:10]} 44. Qxe7+ {[%emt 0:00:12]} 1-0

[Event "EYCC Open-U12 2019"]
[Site "Bratislava"]
[Date "2019.08.05"]
[Round "4.5"]
[White "Lystsov, Leonid"]
[Black "von Mettenheim, Johannes"]
[Result "0-1"]
[ECO "A04"]
[WhiteElo "2086"]
[BlackElo "1809"]
[Annotator "NA"]
[PlyCount "234"]
[EventDate "2019.08.02"]
[EventType "swiss"]
[EventCountry "SVK"]
[SourceTitle "playchess.com"]
[Source "ChessBase"]
[SourceQuality "1"]
[TimeControl "40/5400+30:1800+30"]

1. Nf3 {[%emt 0:00:00]} b6 {[%emt 0:00:00]} 2. g3 {[%emt 0:00:00]} Bb7 {[%emt 0:00:00]} 3. Bg2 {[%emt 0:00:00]} c5 {[%emt 0:00:00]} 4. O-O {[%emt 0:00:00]} Nf6 {[%emt 0:00:04]} 5. c4 {[%emt 0:00:04]} g6 {[%emt 0:01:25]} 6. Nc3 {[%emt 0:04:44]} Bg7 {[%emt 0:00:03]} 7. d4 {[%emt 0:03:17]} cxd4 {[%emt 0:00:06]} 8. Nxd4 {[%emt 0:00:15]} Bxg2 {[%emt 0:00:03]} 9. Kxg2 {[%emt 0:00:08]} O-O {[%emt 0:00:07]} 10. e4 {[%emt 0:01:49]} Qc7 {[%emt 0:03:16]} 11. b3 {[%emt 0:07:12]} Qb7 {[%emt 0:03:15]} 12. f3 {[%emt 0:03:13]} Nc6 {[%emt 0:03:02]} 13. Bb2 {[%emt 0:03:27]} Rfd8 {[%emt 0:14:40]} 14. Nd5 {[%emt 0:45:05]} Nxd5 {[%emt 0:02:45]} 15. exd5 {[%emt 0:00:23]} Nxd4 {[%emt 0:00:27]} 16. Bxd4 {[%emt 0:00:09]} e5 {[%emt 0:00:09]} 17. Be3 {[%emt 0:00:29]} f5 {[%emt 0:01:23]} 18. Qd2 {[%emt 0:02:32]} d6 {[%emt 0:00:51]} 19. a4 {[%emt 0:01:49]} Re8 {[%emt 0:02:26]} 20. Ra2 {[%emt 0:02:44]} e4 {[%emt 0:00:22]} 21. f4 {[%emt 0:00:23]} Reb8 {[%emt 0:16:19]} 22. Rb1 {[%emt 0:07:31]} a6 {[%emt 0:04:38]} 23. b4 {[%emt 0:03:06]} Rc8 {[%emt 0:04:16]} 24. Rc2 {[%emt 0:01:02]} Rab8 {[%emt 0:06:50]} 25. Rbc1 {[%emt 0:04:32]} Qd7 {[%emt 0:01:13]} 26. Ra2 {[%emt 0:03:23]} Qb7 {[%emt 0:07:35]} 27. Qd1 {[%emt 0:01:58]} a5 {[%emt 0:05:19]} 28. Qb3 {[%emt 0:01:33]} Qa6 {[%emt 0:00:59]} 29. Rac2 {[%emt 0:01:32]} Rc7 {[%emt 0:02:47]} 30. bxa5 {[%emt 0:01:06]} Qxa5 {[%emt 0:00:13]} 31. Rb1 {[%emt 0:01:11]} Ra7 {[%emt 0:00:41]} 32. Ra2 {[%emt 0:00:21]} Ra6 {[%emt 0:01:06]} 33. Qb5 {[%emt 0:00:23]} Rba8 {[%emt 0:01:54]} 34. Rb4 {[%emt 0:01:05]} Bc3 {[%emt 0:00:31]} 35. Rb3 {[%emt 0:00:12]} Bg7 {[%emt 0:00:44]} 36. Qxa5 {[%emt 0:00:48]} Rxa5 {[%emt 0:00:29]} 37. Rb4 {[%emt 0:00:31]} Bc3 {[%emt 0:00:31]} 38. Rb3 {[%emt 0:00:25]} Bg7 {[%emt 0:00:11]} 39. Rxb6 {[%emt 0:00:00]} Rxa4 {[%emt 0:00:00]} 40. Rxa4 {[%emt 0:00:00]} Rxa4 {[%emt 0:00:00]} 41. c5 {[%emt 0:28:25]} dxc5 {[%emt 0:01:11]} 42. d6 {[%emt 0:01:05]} Ra2+ {[%emt 0:01:14]} 43. Kh3 {[%emt 0:00:20]} Ra7 {[%emt 0:01:31]} 44. Bxc5 {[%emt 0:02:42]} Rd7 {[%emt 0:00:19]} 45. g4 {[%emt 0:00:46]} Kf7 {[%emt 0:00:20]} 46. gxf5 {[%emt 0:00:04]} gxf5 {[%emt 0:00:06]} 47. Bb4 {[%emt 0:00:44]} Ke6 {[%emt 0:00:29]} 48. Rb5 {[%emt 0:00:13]} Bf6 {[%emt 0:01:02]} 49. Kg2 {[%emt 0:00:25]} Rg7+ {[%emt 0:01:27]} 50. Kf2 {[%emt 0:00:35]} Bd4+ {[%emt 0:00:38]} 51. Kf1 {[%emt 0:00:40]} Rg1+ {[%emt 0:03:17]} 52. Ke2 {[%emt 0:00:03]} Rg7 {[%emt 0:04:28]} 53. Rb8 {[%emt 0:01:09]} Rd7 {[%emt 0:02:45]} 54. h4 {[%emt 0:00:21]} Bg7 {[%emt 0:00:39]} 55. h5 {[%emt 0:00:54]} Bh6 {[%emt 0:00:52]} 56. Ke3 {[%emt 0:00:08]} Bg7 {[%emt 0:00:37]} 57. Bc5 {[%emt 0:00:49]} Kf7 {[%emt 0:00:23]} 58. Ke2 {[%emt 0:00:36]} Bf8 {[%emt 0:00:29]} 59. Rb5 {[%emt 0:00:26]} Ke6 {[%emt 0:00:44]} 60. Rb6 {[%emt 0:00:41]} Bxd6 {[%emt 0:00:57]} 61. Bxd6 {[%emt 0:00:12]} Rxd6 {[%emt 0:00:07]} 62. Rb7 {[%emt 0:00:17]} Rd7 {[%emt 0:00:20]} 63. Rb6+ {[%emt 0:00:05]} Kf7 {[%emt 0:00:56]} 64. Rb5 {[%emt 0:00:34]} Kf6 {[%emt 0:00:24]} 65. Rb6+ {[%emt 0:00:22]} Kg7 {[%emt 0:00:10]} 66. Rb5 {[%emt 0:01:23]} Rf7 {[%emt 0:00:06]} 67. Rb1 {[%emt 0:00:30]} Kh6 {[%emt 0:00:09]} 68. Rg1 {[%emt 0:00:38]} Rg7 {[%emt 0:00:45]} 69. Rh1 {[%emt 0:00:22]} Rg3 {[%emt 0:00:33]} 70. Rh2 {[%emt 0:00:16]} Ra3 {[%emt 0:01:03]} 71. Rh1 {[%emt 0:00:14]} Rf3 {[%emt 0:00:17]} 72. Rh4 {[%emt 0:00:05]} Kg7 {[%emt 0:00:42]} 73. Kd2 {[%emt 0:00:14]} Rg3 {[%emt 0:01:11]} 74. Rh2 {[%emt 0:00:15]} Kf6 {[%emt 0:01:26]} 75. Ke2 {[%emt 0:00:07]} Ke6 {[%emt 0:00:24]} 76. h6 {[%emt 0:00:17]} Rf3 {[%emt 0:01:12]} 77. Rh4 {[%emt 0:00:05]} Kd5 {[%emt 0:00:36]} 78. Kd2 {[%emt 0:00:14]} e3+ {[%emt 0:00:17]} 79. Kd3 {[%emt 0:00:29]} Rg3 {[%emt 0:00:27]} 80. Rh5 {[%emt 0:00:46]} e2+ {[%emt 0:00:27]} 81. Kxe2 {[%emt 0:00:03]} Ke4 {[%emt 0:00:07]} 82. Rg5 {[%emt 0:02:12]} Rh3 {[%emt 0:00:15]} 83. Rg7 {[%emt 0:00:22]} Rxh6 {[%emt 0:00:06]} 84. Rf7 {[%emt 0:00:34]} Rh2+ {[%emt 0:00:08]} 85. Kf1 {[%emt 0:00:07]} Kxf4 {[%emt 0:00:06]} 86. Kg1 {[%emt 0:00:05]} Rh4 {[%emt 0:00:20]} 87. Kg2 {[%emt 0:00:04]} Kg5 {[%emt 0:00:22]} 88. Rg7+ {[%emt 0:00:15]} Kf6 {[%emt 0:00:05]} 89. Ra7 {[%emt 0:00:04]} Rg4+ {[%emt 0:00:19]} 90. Kf3 {[%emt 0:00:06]} Rg7 {[%emt 0:00:14]} 91. Ra1 {[%emt 0:00:12]} h5 {[%emt 0:01:03]} 92. Rh1 {[%emt 0:01:19]} Rg5 {[%emt 0:00:33]} 93. Rh4 {[%emt 0:00:48]} Kg6 {[%emt 0:00:09]} 94. Ra4 {[%emt 0:00:13]} Rg4 {[%emt 0:00:22]} 95. Ra6+ {[%emt 0:00:04]} Kg5 {[%emt 0:00:11]} 96. Ra8 {[%emt 0:00:03]} Rf4+ {[%emt 0:02:13]} 97. Ke3 {[%emt 0:00:12]} Rf1 {[%emt 0:00:36]} 98. Rg8+ {[%emt 0:00:17]} Kh4 {[%emt 0:00:08]} 99. Ke2 {[%emt 0:00:07]} Rf4 {[%emt 0:00:05]} 100. Ke3 {[%emt 0:00:06]} Rg4 {[%emt 0:00:15]} 101. Rf8 {[%emt 0:00:09]} Rg3+ {[%emt 0:01:53]} 102. Kf4 {[%emt 0:01:02]} Rg1 {[%emt 0:00:16]} 103. Ke3 {[%emt 0:00:14]} Re1+ {[%emt 0:01:54]} 104. Kf2 {[%emt 0:00:24]} Re5 {[%emt 0:00:07]} 105. Kf3 {[%emt 0:00:14]} Kh3 {[%emt 0:00:35]} 106. Kf4 {[%emt 0:00:45]} Re1 {[%emt 0:00:45]} 107. Ra8 {[%emt 0:03:02]} Rf1+ {[%emt 0:01:42]} 108. Ke3 {[%emt 0:00:21]} h4 {[%emt 0:00:27]} 109. Ke2 {[%emt 0:00:12]} Rf4 {[%emt 0:00:23]} 110. Ke3 {[%emt 0:00:21]} Rg4 {[%emt 0:00:38]} 111. Kf3 {[%emt 0:00:39]} Rg3+ {[%emt 0:01:01]} 112. Kf2 {[%emt 0:00:27]} Kh2 {[%emt 0:00:24]} 113. Ra5 {[%emt 0:00:27]} Rg5 {[%emt 0:01:23]} 114. Kf3 {[%emt 0:00:10]} h3 {[%emt 0:00:31]} 115. Kf4 {[%emt 0:02:49]} Rg1 {[%emt 0:03:01]} 116. Ra2+ {[%emt 0:02:00]} Kh1 {[%emt 0:00:21]} 117. Kf3 h2 0-1

[Event "EYCC Open-U12 2019"]
[Site "Bratislava"]
[Date "2019.08.05"]
[Round "4.6"]
[White "Makridis, Dimitrios"]
[Black "Han, Yichen"]
[Result "1-0"]
[ECO "C54"]
[WhiteElo "1798"]
[BlackElo "2217"]
[Annotator "NA"]
[PlyCount "87"]
[EventDate "2019.08.02"]
[EventType "swiss"]
[EventCountry "SVK"]
[SourceTitle "playchess.com"]
[Source "ChessBase"]
[SourceQuality "1"]
[TimeControl "40/5400+30:1800+30"]

1. e4 {[%emt 0:00:00]} e5 {[%emt 0:00:00]} 2. Nf3 {[%emt 0:00:00]} Nc6 {[%emt 0:00:00]} 3. Bc4 {[%emt 0:00:00]} Bc5 {[%emt 0:00:00]} 4. c3 {[%emt 0:00:00]} Nf6 {[%emt 0:00:00]} 5. d3 {[%emt 0:00:00]} d6 {[%emt 0:00:07]} 6. h3 {[%emt 0:03:11]} a6 {[%emt 0:00:18]} 7. Bb3 {[%emt 0:00:10]} Ba7 {[%emt 0:00:13]} 8. Nbd2 {[%emt 0:02:23]} O-O {[%emt 0:08:36]} 9. O-O {[%emt 0:06:33]} Ne7 {[%emt 0:02:35]} 10. Re1 {[%emt 0:00:29]} Ng6 {[%emt 0:00:19]} 11. Nf1 {[%emt 0:00:19]} h6 {[%emt 0:04:44]} 12. Ng3 {[%emt 0:04:29]} Be6 {[%emt 0:00:37]} 13. Bc2 {[%emt 0:03:04]} c6 {[%emt 0:02:41]} 14. d4 {[%emt 0:05:51]} Qc7 {[%emt 0:03:12]} 15. Be3 {[%emt 0:03:37]} Rfd8 {[%emt 0:07:33]} 16. Qd2 {[%emt 0:07:34]} d5 {[%emt 0:09:35]} 17. Nxe5 {[%emt 0:11:55]} Nxe5 {[%emt 0:01:32]} 18. dxe5 {[%emt 0:00:29]} Nxe4 {[%emt 0:04:36]} 19. Nxe4 {[%emt 0:01:18]} dxe4 {[%emt 0:00:06]} 20. Qe2 {[%emt 0:00:09]} Bxe3 {[%emt 0:01:27]} 21. Qxe3 {[%emt 0:00:13]} Qxe5 {[%emt 0:00:23]} 22. Bxe4 {[%emt 0:00:14]} Qf6 {[%emt 0:00:16]} 23. Bc2 {[%emt 0:11:28]} Rd6 {[%emt 0:02:32]} 24. Rad1 {[%emt 0:03:28]} Rad8 {[%emt 0:00:44]} 25. Rxd6 {[%emt 0:01:40]} Rxd6 {[%emt 0:00:22]} 26. a3 {[%emt 0:02:41]} Bf5 {[%emt 0:07:37]} 27. Bb3 {[%emt 0:06:37]} Be6 {[%emt 0:04:32]} 28. Bc2 {[%emt 0:02:22]} Rd8 {[%emt 0:01:23]} 29. Be4 {[%emt 0:06:07]} Bf5 {[%emt 0:04:21]} 30. Bf3 {[%emt 0:04:57]} Qg6 {[%emt 0:01:36]} 31. Kh1 {[%emt 0:02:01]} Rd3 {[%emt 0:04:08]} 32. Qf4 {[%emt 0:01:07]} Qf6 {[%emt 0:04:08]} 33. Re8+ {[%emt 0:02:27]} Kh7 {[%emt 0:00:07]} 34. Re5 {[%emt 0:00:07]} g6 {[%emt 0:07:33]} 35. Bg4 {[%emt 0:01:56]} Qd6 {[%emt 0:06:51]} 36. Bxf5 {[%emt 0:01:59]} Rd1+ {[%emt 0:00:39]} 37. Kh2 {[%emt 0:00:02]} f6 {[%emt 0:02:19]} 38. Bc2 {[%emt 0:02:58]} Rd2 {[%emt 0:07:00]} 39. Re7+ {[%emt 0:00:08]} Qxe7 {[%emt 0:00:04]} 40. Qxd2 {[%emt 0:00:00]} Qe5+ {[%emt 0:00:00]} 41. f4 {[%emt 0:00:17]} Qe6 {[%emt 0:00:22]} 42. f5 {[%emt 0:01:42]} Qe5+ {[%emt 0:00:18]} 43. Kh1 {[%emt 0:00:54]} gxf5 {[%emt 0:00:06]} 44. Qd4 {[%emt 0:00:48]} 1-0